bitfinex/quotes_BTCUSD_20250213
["timestamp","ask_amount","ask_price","bid_price","bid_amount"]
[1739473976398,0.155464,96485.0,96478.0,0.159475]
[1739473976591,0.155464,96485.0,96478.0,0.004]
[1739473977338,0.155465,96485.0,96477.0,0.25798065]
[1739473977558,0.207281,96487.0,96477.0,0.10250365]
[1739473977773,0.155459,96488.0,96478.0,0.155474]
[1739473977996,0.1249066,96489.0,96478.0,0.155474]
[1739473978222,0.155463,96486.0,96478.0,0.155474]
[1739473978704,0.1249066,96489.0,96480.0,0.207296]
[1739473978932,0.1249066,96489.0,96478.0,0.155475]
[1739473979177,0.155463,96486.0,96478.0,0.158475]
[1739473979424,0.155463,96486.0,96478.0,0.155475]
[1739473979635,0.155467,96484.0,96478.0,0.004]
[1739473979780,0.155464,96485.0,96478.0,0.155475]
[1739473979991,0.155464,96485.0,96477.0,0.10250365]
[1739473980202,0.1249066,96489.0,96478.0,0.004]
[1739473980401,0.155463,96486.0,96479.0,0.155473]
[1739473981025,0.155463,96486.0,96477.0,0.10250365]
[1739473981255,0.20728,96488.0,96478.0,0.003]
[1739473981496,0.155474,96479.0,96478.0,0.003]
[1739473981712,0.982225,96479.0,96478.0,0.003]
[1739473981955,0.456287,96479.0,96478.0,0.007]
[1739473982174,0.245742,96479.0,96478.0,0.003]
[1739473982391,0.1249066,96489.0,96478.0,0.25797865]
[1739473982392,0.0458066,96489.0,96478.0,0.25797865]
[1739473982600,0.0001066,96489.0,96488.0,0.155459]
[1739473983459,0.0001066,96489.0,96481.0,0.207293]
[1739473983782,0.0001066,96489.0,96482.0,0.10250365]
[1739473983943,0.0001066,96489.0,96488.0,0.155459]
[1739473984150,0.0001066,96489.0,96487.0,0.155461]
[1739473984493,0.0001066,96489.0,96488.0,0.003]
[1739473984842,0.0001066,96489.0,96488.0,0.158459]
[1739473985049,0.0001066,96489.0,96488.0,0.33696265]
[1739473985294,0.0001066,96489.0,96488.0,1.02216265]
[1739473985489,0.0001066,96489.0,96488.0,1.08807975]
[1739473985810,6e-07,96489.0,96488.0,1.08507975]
[1739473985981,4.79051596,96491.0,96490.0,0.385056]
[1739473986185,4.76978896,96491.0,96490.0,0.54253478]
[1739473987202,4.76978896,96491.0,96490.0,0.54953478]
[1739473987412,4.76978896,96491.0,96490.0,0.55653478]
[1739473987618,4.76978896,96491.0,96490.0,0.52455965]
[1739473988184,4.76978896,96491.0,96490.0,0.55646512]
[1739473988391,4.76978896,96491.0,96490.0,0.52455965]
[1739473991174,4.76978896,96491.0,96490.0,1.05975965]
[1739473992493,4.76978896,96491.0,96490.0,1.03675965]
[1739473994063,4.76978896,96491.0,96490.0,1.05663052]
[1739473997365,4.76978896,96491.0,96490.0,1.04440229]
[1739474001233,4.76978896,96491.0,96490.0,1.05662495]
[1739474004232,4.76978896,96491.0,96490.0,1.04440229]
[1739474006083,4.76978896,96491.0,96490.0,0.81480229]
[1739474007004,4.76978896,96491.0,96490.0,0.96480229]
[1739474007430,4.76978896,96491.0,96490.0,0.95715965]
[1739474007662,4.76978896,96491.0,96490.0,0.95015965]
[1739474008160,4.76978896,96491.0,96490.0,0.95715965]
[1739474009097,4.76978896,96491.0,96490.0,0.42195965]
[1739474009337,4.76978896,96491.0,96490.0,0.41495965]
[1739474009557,4.76978896,96491.0,96490.0,0.4151833]
[1739474010051,4.76978896,96491.0,96490.0,0.4221833]
[1739474011283,4.76978896,96491.0,96490.0,0.2667273]
[1739474011744,4.76978896,96491.0,96490.0,0.4221833]
[1739474013366,4.97044296,96491.0,96490.0,0.1167273]
[1739474013818,4.81498896,96491.0,96490.0,0.1167273]
[1739474014495,4.97044296,96491.0,96490.0,0.01422365]
[1739474015137,4.81498896,96491.0,96490.0,0.01422365]
[1739474015335,4.97044296,96491.0,96490.0,0.01422365]
[1739474015790,4.81498896,96491.0,96490.0,0.01422365]
[1739474016473,5.05024296,96491.0,96490.0,0.01422365]
[1739474017579,5.05024296,96491.0,96490.0,0.00722365]
[1739474018081,5.05024296,96491.0,96490.0,0.00422365]
[1739474018306,6.37166496,96491.0,96490.0,0.00422365]
[1739474018529,6.37166496,96491.0,96490.0,0.00722365]
[1739474018968,6.37166496,96491.0,96490.0,0.00422365]
[1739474020207,6.37166496,96491.0,96490.0,0.00022365]
[1739474020474,6.37166496,96491.0,96490.0,0.00122365]
[1739474020688,6.37166496,96491.0,96490.0,0.00022365]
[1739474020895,8.35333705,96491.0,96490.0,0.00022365]
[1739474021097,8.35333705,96491.0,96490.0,0.00122365]
[1739474021515,8.06876605,96491.0,96490.0,0.00122365]
[1739474022763,7.47592605,96491.0,96490.0,0.00122365]
[1739474022971,6.60314805,96491.0,96490.0,0.00122365]
[1739474023173,5.06378296,96491.0,96490.0,0.00122365]
[1739474023381,5.21923696,96491.0,96490.0,0.00122365]
[1739474028522,6.03617896,96491.0,96490.0,0.00122365]
[1739474028747,5.91203596,96491.0,96490.0,0.00122365]
[1739474030365,5.48053696,96491.0,96490.0,0.00122365]
[1739474031526,5.58304061,96491.0,96490.0,0.00122365]
[1739474031790,0.155474,96479.0,96478.0,0.00022386]
[1739474032027,3.569104,96479.0,96478.0,0.00022386]
[1739474032281,4.05802165,96479.0,96478.0,0.00022386]
[1739474035338,0.15275684,96453.0,96452.0,0.08300004]
[1739474035549,0.155519,96451.0,96450.0,0.075]
[1739474035987,3.040118,96451.0,96450.0,0.075]
[1739474036366,2.962338,96451.0,96450.0,0.075]
[1739474036566,2.962338,96451.0,96450.0,0.07513129]
[1739474036774,3.05354133,96451.0,96450.0,0.07513129]
[1739474037420,3.05354133,96451.0,96450.0,0.07913129]
[1739474037819,3.05354133,96451.0,96450.0,0.08013129]
[1739474038232,3.05354133,96451.0,96450.0,0.07513129]
[1739474038507,3.05454133,96451.0,96450.0,0.07513129]
[1739474038722,3.05354133,96451.0,96450.0,0.07513129]
[1739474039140,3.05454133,96451.0,96450.0,0.07513129]
[1739474039576,3.06066178,96451.0,96450.0,0.07513129]
[1739474039796,3.10576178,96451.0,96450.0,0.07513129]
[1739474040012,3.10876178,96451.0,96450.0,0.07513129]
[1739474040416,3.10576178,96451.0,96450.0,0.07513129]
[1739474040871,3.10876178,96451.0,96450.0,0.07509129]
[1739474041077,3.10776178,96451.0,96450.0,0.07509129]
[1739474041301,3.10876178,96451.0,96450.0,0.05435529]
[1739474042135,3.10876178,96451.0,96422.0,0.08300004]
[1739474042136,0.432435,96441.0,96440.0,8.9e-07]
[1739474042349,0.432435,96441.0,96422.0,0.08300004]
[1739474042350,0.155564,96423.0,96422.0,0.08300004]
[1739474042576,2.571135,96423.0,96422.0,0.08304537]
[1739474042783,2.110086,96423.0,96422.0,4.533e-05]
[1739474042993,0.41539,96423.0,96422.0,4.533e-05]
[1739474043229,0.15557,96419.0,96418.0,0.07454533]
[1739474043434,0.155564,96423.0,96418.0,0.07454533]
[1739474043645,0.155567,96422.0,96418.0,0.07454533]
[1739474044065,0.15557,96419.0,96418.0,0.07454533]
[1739474044274,0.155572,96418.0,96417.0,0.00011326]
[1739474045337,0.16638284,96418.0,96417.0,0.00011326]
[1739474045548,0.16638284,96418.0,96417.0,0.00411326]
[1739474047167,0.16638284,96418.0,96417.0,0.00811326]
[1739474048474,1.54851584,96418.0,96417.0,0.00811326]
[1739474048728,1.23824684,96418.0,96417.0,0.00811326]
[1739474048972,0.38678084,96418.0,96417.0,0.00811326]
[1739474049211,0.37480484,96418.0,96417.0,0.00811326]
[1739474049654,0.31862484,96418.0,96417.0,0.00811326]
[1739474050361,0.31862484,96418.0,96417.0,0.00411326]
[1739474050598,0.35798084,96418.0,96417.0,0.00811326]
[1739474051228,0.35798084,96418.0,96417.0,0.00411326]
[1739474051453,0.35798084,96418.0,96417.0,0.00711326]
[1739474057357,0.20240884,96418.0,96417.0,0.00733712]
[1739474057562,0.35798084,96418.0,96417.0,0.00733712]
[1739474057983,0.20240884,96418.0,96417.0,0.00733712]
[1739474059074,0.35798084,96418.0,96417.0,0.00733712]
[1739474063524,0.35798084,96418.0,96417.0,0.00033712]
[1739474063786,0.35798084,96418.0,96417.0,0.00533712]
[1739474064240,0.35798084,96418.0,96417.0,0.00333712]
[1739474064465,0.20240884,96418.0,96417.0,0.00333712]
[1739474064677,0.20240884,96418.0,96417.0,0.00533712]
[1739474065120,0.20240884,96418.0,96417.0,0.16091112]
[1739474065346,0.20240884,96418.0,96417.0,0.00533712]
[1739474065569,0.191598,96418.0,96417.0,0.16091112]
[1739474065817,0.01084576,96421.0,96420.0,0.155569]
[1739474066309,0.155558,96427.0,96422.0,0.155565]
[1739474066547,0.155559,96426.0,96421.0,0.155567]
[1739474066768,0.0476,96442.0,96419.0,0.0795]
[1739474067009,0.207386,96439.0,96421.0,0.207423]
[1739474067234,0.155567,96421.0,96420.0,0.003]
[1739474067705,0.155566,96422.0,96417.0,0.00033712]
[1739474067920,1.033863,96421.0,96419.0,0.001]
[1739474068155,1.189431,96421.0,96419.0,0.001]
[1739474068402,1.033863,96420.0,96419.0,0.001]
[1739474068639,1.189432,96420.0,96419.0,0.001]
[1739474069072,1.033863,96420.0,96419.0,0.001]
[1739474069295,1.189432,96420.0,96419.0,0.001]
[1739474069536,1.033863,96420.0,96417.0,0.10284077]
[1739474069746,1.167461,96420.0,96417.0,0.10284077]
[1739474069979,1.167461,96420.0,96417.0,0.10384077]
[1739474070240,0.207404,96430.0,96417.0,0.10284077]
[1739474070241,2.01685,96429.0,96417.0,0.10284077]
[1739474070468,0.155568,96421.0,96417.0,0.10284077]
[1739474070659,1.335667,96420.0,96419.0,0.003]
[1739474070921,1.072178,96420.0,96419.0,0.003]
[1739474071128,1.320465,96421.0,96417.0,0.10284077]
[1739474071390,1.164898,96420.0,96417.0,0.10384077]
[1739474071617,0.155567,96421.0,96417.0,0.10384077]
[1739474071618,0.965892,96419.0,96417.0,0.10584077]
[1739474071840,1.317536,96420.0,96417.0,0.10584077]
[1739474072082,0.155563,96424.0,96417.0,0.10584077]
[1739474072319,0.155564,96423.0,96417.0,0.26141477]
[1739474072537,0.155566,96422.0,96417.0,0.10584077]
[1739474072761,0.155563,96424.0,96417.0,0.10584077]
[1739474072974,0.390391,96423.0,96418.0,0.155572]
[1739474073617,0.37802,96422.0,96419.0,0.001]
[1739474073845,0.37802,96423.0,96420.0,0.10250365]
[1739474074134,0.01065373,96449.0,96420.0,0.10250365]
[1739474074369,0.155528,96446.0,96436.0,0.155542]
[1739474074604,0.171044,96445.0,96421.0,0.6112]
[1739474074822,1.014178,96450.0,96422.0,0.25250365]
[1739474075045,0.814527,96449.0,96443.0,0.155532]
[1739474075279,0.658742,96449.0,96440.0,0.207382]
[1739474075444,0.612869,96448.0,96431.0,0.00768214]
[1739474075683,0.15553,96444.0,96432.0,0.10250365]
[1739474075883,0.436629,96443.0,96438.0,0.15554]
[1739474076093,0.537683,96445.0,96437.0,0.155541]
[1739474076262,0.75527,96447.0,96438.0,0.155539]
[1739474076676,0.405508,96447.0,96439.0,0.155537]
[1739474076876,0.207367,96448.0,96439.0,0.155537]
[1739474076877,0.001,96444.0,96439.0,0.155537]
[1739474077086,0.002,96443.0,96440.0,0.155536]
[1739474077310,0.002,96443.0,96434.0,0.207395]
[1739474077521,0.155521,96450.0,96443.0,0.155532]
[1739474077744,0.177162,96449.0,96439.0,0.0763]
[1739474077983,0.004,96447.0,96435.0,0.10250365]
[1739474078210,0.155534,96442.0,96435.0,0.10250365]
[1739474078470,1.054535,96441.0,96437.0,0.155541]
[1739474078671,0.445095,96443.0,96435.0,0.10250365]
[1739474078926,0.004,96447.0,96436.0,0.207391]
[1739474079159,0.609904,96446.0,96441.0,0.155535]
[1739474079586,0.003,96443.0,96442.0,0.155533]
[1739474079819,0.409295,96443.0,96439.0,0.155538]
[1739474080039,0.405122,96442.0,96440.0,0.155536]
[1739474080246,0.612332,96446.0,96436.0,0.005]
[1739474080458,0.01055263,96451.0,96441.0,0.005]
[1739474080671,0.155524,96448.0,96441.0,0.160535]
[1739474080881,0.867608,96447.0,96442.0,0.006]
[1739474081216,0.001,96443.0,96440.0,0.155536]
[1739474081439,0.405122,96442.0,96440.0,0.155536]
[1739474081658,0.405122,96442.0,96439.0,0.006]
[1739474081878,0.405122,96442.0,96439.0,0.161537]
[1739474082132,0.405122,96442.0,96439.0,0.006]
[1739474082549,0.405122,96442.0,96439.0,0.155538]
[1739474082747,0.778625,96444.0,96441.0,0.004]
[1739474082872,0.155529,96445.0,96441.0,0.004]
[1739474083076,0.775813,96444.0,96439.0,0.006]
[1739474083309,0.155534,96442.0,96439.0,0.006]
[1739474083521,0.155537,96440.0,96439.0,0.012]
[1739474083763,0.155537,96440.0,96439.0,0.006]
[1739474083970,0.155537,96440.0,96435.0,0.10250365]
[1739474084166,0.155537,96440.0,96439.0,0.006]
[1739474084367,0.910683,96440.0,96439.0,0.006]
[1739474084565,1.091537,96440.0,96439.0,0.006]
[1739474084770,1.742896,96440.0,96439.0,0.006]
[1739474084967,1.819488,96440.0,96439.0,0.006]
[1739474085175,1.675019,96440.0,96439.0,0.006]
[1739474085657,1.541221,96440.0,96439.0,0.013]
[1739474085875,0.919051,96440.0,96439.0,0.006]
[1739474086077,0.593505,96440.0,96439.0,0.004]
[1739474086496,0.594505,96440.0,96439.0,0.011]
[1739474086951,0.593505,96440.0,96439.0,0.004]
[1739474087163,0.593505,96440.0,96439.0,0.008]
[1739474096760,0.155537,96440.0,96439.0,0.008]
[1739474097265,2.199573,96440.0,96439.0,0.008]
[1739474097476,1.268139,96440.0,96439.0,0.008]
[1739474097708,0.674596,96440.0,96439.0,0.008]
[1739474097924,0.2074766,96446.0,96439.0,0.008]
[1739474098140,0.235014,96445.0,96439.0,0.008]
[1739474098357,0.235014,96445.0,96440.0,0.155535]
[1739474098581,0.235014,96445.0,96439.0,0.008]
[1739474098582,0.155531,96444.0,96439.0,0.163538]
[1739474098823,0.0001066,96446.0,96439.0,0.008]
[1739474099057,0.0001066,96446.0,96442.0,0.155533]
[1739474099287,0.0001066,96446.0,96432.0,0.0758]
[1739474099504,0.0001066,96446.0,96439.0,0.003]
[1739474099725,0.0001066,96446.0,96443.0,0.155531]
[1739474099944,0.0001066,96446.0,96444.0,0.15553]
[1739474100167,0.0001066,96446.0,96441.0,0.207379]
[1739474100392,0.0001066,96446.0,96435.0,0.155545]
[1739474100393,0.155538,96440.0,96435.0,0.155545]
[1739474100622,0.392139,96439.0,96437.0,0.15554]
[1739474100852,0.342707,96438.0,96435.0,0.10250365]
[1739474101080,0.0001066,96446.0,96432.0,0.283198]
[1739474101081,0.0001066,96446.0,96436.0,0.10250365]
[1739474101311,0.0001066,96446.0,96445.0,0.155529]
[1739474101536,0.0001066,96446.0,96445.0,0.25803265]
[1739474101756,0.0001066,96446.0,96445.0,0.34093265]
[1739474102213,0.0001066,96446.0,96445.0,0.34089265]
[1739474102947,0.0001066,96446.0,96445.0,0.34189265]
[1739474103160,0.0001066,96446.0,96445.0,0.34389265]
[1739474103829,0.0001066,96446.0,96445.0,0.34189265]
[1739474104262,0.0001066,96446.0,96445.0,0.34089265]
[1739474104725,0.0001066,96446.0,96445.0,0.34789265]
[1739474105205,0.0001066,96446.0,96445.0,0.35489265]
[1739474105853,0.0001066,96446.0,96445.0,0.35511651]
[1739474107051,0.0001066,96446.0,96445.0,0.89031651]
[1739474107655,0.0001066,96446.0,96445.0,0.73482751]
[1739474107860,0.0001066,96446.0,96445.0,0.89035651]
[1739474108532,0.0001066,96446.0,96445.0,0.35515651]
[1739474110420,0.0001066,96446.0,96445.0,0.50515651]
[1739474110630,0.0001066,96446.0,96445.0,0.55015651]
[1739474111068,0.0001066,96446.0,96445.0,1.08535651]
[1739474112441,0.0001066,96446.0,96445.0,1.09301359]
[1739474116447,0.0001066,96446.0,96445.0,1.11329485]
[1739474118715,6e-07,96446.0,96445.0,1.11329485]
[1739474119428,6e-07,96446.0,96445.0,1.11329485]
[1739474123581,6e-07,96446.0,96445.0,1.13578796]
[1739474124671,2e-07,96451.0,96450.0,0.40732]
[1739474124882,2e-07,96451.0,96450.0,1.04502365]
[1739474125970,4.393e-05,96451.0,96450.0,1.04502365]
[1739474126372,4.393e-05,96451.0,96450.0,1.05202365]
[1739474126909,4.393e-05,96451.0,96450.0,1.05968073]
[1739474127575,4.393e-05,96451.0,96450.0,1.06668073]
[1739474127762,4.77970102,96491.0,96487.0,0.15546]
[1739474128057,4.77974478,96491.0,96471.0,0.5352]
[1739474128348,4.77974478,96491.0,96489.0,0.155457]
[1739474128572,4.77974478,96491.0,96487.0,0.20728]
[1739474128787,4.93519978,96491.0,96476.0,0.207305]
[1739474129000,4.77974478,96491.0,96487.0,0.004]
[1739474129231,0.974052,96490.0,96487.0,0.004]
[1739474129460,0.779469,96489.0,96485.0,0.155463]
[1739474129945,0.155457,96490.0,96487.0,0.003]
[1739474130187,0.782259,96489.0,96487.0,0.003]
[1739474130410,4.77974478,96491.0,96488.0,0.155459]
[1739474130636,4.77974478,96491.0,96485.0,0.004]
[1739474130863,0.57234,96490.0,96489.0,0.155457]
[1739474131088,0.352576,96490.0,96489.0,0.155457]
[1739474131309,0.352576,96490.0,96487.0,0.004]
[1739474131527,0.352576,96490.0,96487.0,0.163461]
[1739474131727,0.352576,96490.0,96487.0,0.159461]
[1739474132531,0.155459,96488.0,96487.0,0.004]
[1739474132769,1.230081,96488.0,96487.0,0.004]
[1739474132981,1.178247,96488.0,96487.0,0.004]
[1739474133220,1.333381,96489.0,96487.0,0.004]
[1739474133441,1.175133,96488.0,96487.0,0.004]
[1739474134054,1.175133,96488.0,96487.0,0.159461]
[1739474134055,1.165133,96488.0,96487.0,0.159461]
[1739474134272,0.543746,96488.0,96487.0,0.159461]
[1739474134551,0.586534,96490.0,96487.0,0.155461]
[1739474134809,0.155459,96489.0,96484.0,0.155465]
[1739474135027,0.849042,96488.0,96487.0,0.004]
[1739474135258,0.693583,96488.0,96487.0,0.004]
[1739474135487,1.011452,96489.0,96487.0,0.009]
[1739474135710,1.011452,96489.0,96487.0,0.004]
[1739474135957,0.152379,96489.0,96488.0,0.155459]
[1739474136186,4.77996882,96491.0,96487.0,0.20728]
[1739474136414,0.541898,96490.0,96487.0,0.20728]
[1739474136642,0.541898,96490.0,96488.0,0.155459]
[1739474136864,0.541898,96490.0,96487.0,0.004]
[1739474137080,0.541898,96490.0,96488.0,0.005]
[1739474137744,0.155458,96489.0,96488.0,0.005]
[1739474138391,0.155458,96489.0,96487.0,0.004]
[1739474138607,0.155458,96489.0,96487.0,0.008]
[1739474139054,4.77996882,96491.0,96487.0,0.004]
[1739474139280,1.080001,96490.0,96488.0,0.005]
[1739474139508,1.080001,96490.0,96485.0,0.155462]
[1739474139744,1.235457,96490.0,96488.0,0.004]
[1739474139989,4.76928235,96491.0,96488.0,0.004]
[1739474140204,4.76928235,96491.0,96490.0,0.155456]
[1739474140405,0.649565,96490.0,96487.0,0.004]
[1739474140670,0.155457,96490.0,96488.0,0.004]
[1739474140883,4.66514658,96491.0,96488.0,0.004]
[1739474141085,4.66514658,96491.0,96487.0,0.004]
[1739474141348,1.015731,96490.0,96488.0,0.003]
[1739474141568,1.171188,96490.0,96488.0,0.003]
[1739474141785,0.155457,96490.0,96488.0,0.003]
[1739474142002,4.66514658,96491.0,96488.0,0.003]
[1739474142217,1.015216,96490.0,96488.0,0.003]
[1739474142465,4.66514658,96491.0,96488.0,0.007]
[1739474142671,0.92282,96490.0,96488.0,0.004]
[1739474143684,0.92282,96490.0,96488.0,0.007]
[1739474144112,0.92282,96490.0,96488.0,0.004]
[1739474144426,0.155458,96489.0,96488.0,0.008]
[1739474144541,4.66514658,96491.0,96488.0,0.008]
[1739474144746,0.155457,96490.0,96488.0,0.008]
[1739474144954,1.101123,96490.0,96488.0,0.008]
[1739474145162,0.155457,96490.0,96488.0,0.008]
[1739474145766,0.155458,96489.0,96488.0,0.008]
[1739474146228,0.155458,96489.0,96488.0,0.004]
[1739474146390,4.66514658,96491.0,96488.0,0.004]
[1739474146620,0.920696,96490.0,96488.0,0.008]
[1739474146822,1.076153,96490.0,96488.0,0.008]
[1739474146986,4.66514658,96491.0,96488.0,0.008]
[1739474147195,0.923486,96490.0,96488.0,0.004]
[1739474147429,0.923486,96490.0,96488.0,0.007]
[1739474148045,0.923486,96490.0,96237.0,3.797727]
[1739474148046,0.0782,96489.0,96477.0,0.51275698]
[1739474148259,0.0782,96484.0,96451.0,0.51275698]
[1739474148475,0.1243,96478.0,96455.0,0.08300004]
[1739474148695,0.207328,96466.0,96457.0,0.15]
[1739474148907,0.207328,96466.0,96459.0,0.15]
[1739474149105,0.207334,96463.0,96459.0,0.25250365]
[1739474149323,0.1555,96463.0,96459.0,0.25250365]
[1739474149526,0.22813159,96476.0,96459.0,0.25250365]
[1739474149738,0.601047,96475.0,96460.0,0.24714851]
[1739474149946,0.0461,96478.0,96461.0,0.0778]
[1739474150150,0.0467,96487.0,96469.0,0.15549]
[1739474150359,0.207296,96481.0,96470.0,0.61526063]
[1739474150568,0.155487,96471.0,96470.0,0.51275698]
[1739474150788,1.701759,96471.0,96470.0,0.51275698]
[1739474150997,1.704573,96471.0,96470.0,0.51275698]
[1739474151216,1.753173,96471.0,96470.0,0.51275698]
[1739474151654,1.753173,96471.0,96470.0,0.51575698]
[1739474151859,2.03127665,96471.0,96470.0,0.003]
[1739474152291,2.05427665,96471.0,96470.0,0.003]
[1739474153126,2.05427665,96471.0,96470.0,0.006]
[1739474153660,2.05427665,96471.0,96470.0,0.003]
[1739474153864,0.155525,96448.0,96441.0,0.155535]
[1739474154045,0.155525,96448.0,96440.0,0.305537]
[1739474154046,1.112448,96447.0,96440.0,0.305537]
[1739474154247,0.927206,96446.0,96441.0,0.155535]
[1739474154469,1.071903,96446.0,96440.0,0.15]
[1739474154619,1.071903,96446.0,96440.0,0.305537]
[1739474154825,0.916376,96446.0,96442.0,0.155533]
[1739474155037,0.736304,96446.0,96442.0,0.155533]
[1739474155234,0.155527,96446.0,96445.0,0.00222386]
[1739474155475,1.621858,96446.0,96445.0,0.00222386]
[1739474155715,1.605625,96446.0,96445.0,0.00022386]
[1739474155923,1.605625,96446.0,96445.0,0.00322386]
[1739474156134,1.48805,96446.0,96445.0,0.00322386]
[1739474156371,1.48805,96446.0,96445.0,0.00522386]
[1739474156797,1.49876927,96446.0,96445.0,0.00522386]
[1739474157001,1.49876927,96446.0,96445.0,0.00322386]
[1739474157212,1.49876927,96446.0,96445.0,0.00022386]
[1739474157429,1.49876927,96446.0,96445.0,0.00222386]
[1739474157650,1.49876927,96446.0,96445.0,0.00422386]
[1739474157859,1.49876927,96446.0,96445.0,0.00022386]
[1739474158281,1.58016927,96446.0,96445.0,0.00022386]
[1739474158503,1.58016927,96446.0,96445.0,0.00222386]
[1739474158942,1.58016927,96446.0,96445.0,0.00022386]
[1739474159138,1.58016927,96446.0,96445.0,0.00122386]
[1739474159515,1.58016927,96446.0,96445.0,0.00022386]
[1739474160765,1.58116927,96446.0,96445.0,0.00022386]
[1739474161899,1.00362927,96446.0,96445.0,0.00022386]
[1739474162125,0.67923227,96446.0,96445.0,0.00022386]
[1739474162372,0.67823227,96446.0,96445.0,0.00122386]
[1739474162617,0.65799027,96446.0,96445.0,0.00122386]
[1739474162835,0.65799027,96446.0,96445.0,0.00118386]
[1739474163070,0.52646927,96446.0,96445.0,0.00118386]
[1739474163504,0.360223,96446.0,96445.0,0.00118386]
[1739474163756,0.203607,96459.0,96445.0,0.10268751]
[1739474164015,0.01072409,96460.0,96459.0,0.155506]
[1739474164246,0.01072409,96460.0,96459.0,0.40800965]
[1739474164711,0.155474,96479.0,96472.0,0.155484]
[1739474164959,0.249887,96478.0,96475.0,0.15548]
[1739474165179,0.155474,96479.0,96461.0,0.207337]
[1739474165392,0.308619,96478.0,96463.0,0.207333]
[1739474165605,0.728381,96481.0,96464.0,0.10250365]
[1739474165821,0.155482,96475.0,96464.0,0.10250365]
[1739474166044,0.01090417,96482.0,96464.0,0.10250365]
[1739474166316,0.00043753,96482.0,96481.0,0.155471]
[1739474166754,0.01104953,96482.0,96474.0,0.207307]
[1739474166973,0.00043753,96482.0,96475.0,0.10250365]
[1739474167625,0.00043753,96482.0,96477.0,0.207303]
[1739474167828,0.00043753,96482.0,96478.0,0.10250365]
[1739474168032,0.00043753,96482.0,96479.0,0.155472]
[1739474168243,0.00043753,96482.0,96479.0,0.25797565]
[1739474168463,0.00043753,96482.0,96479.0,0.10250365]
[1739474168709,0.00043753,96482.0,96481.0,0.155471]
[1739474168925,1.852989,96481.0,96479.0,0.10250365]
[1739474169392,1.833081,96481.0,96479.0,0.10250365]
[1739474169614,1.848007,96481.0,96479.0,0.10550365]
[1739474169823,1.848007,96481.0,96480.0,0.155472]
[1739474169824,1.412265,96481.0,96480.0,0.155472]
[1739474170054,0.00043753,96482.0,96481.0,0.155471]
[1739474170510,0.01092115,96482.0,96480.0,0.155472]
[1739474170722,1.12093,96481.0,96480.0,0.155472]
[1739474170950,0.9439,96481.0,96480.0,0.155472]
[1739474171626,0.87313,96481.0,96480.0,0.155472]
[1739474171854,0.87313,96481.0,96480.0,0.158472]
[1739474172074,0.00043753,96482.0,96480.0,0.003]
[1739474172289,0.00043753,96482.0,96481.0,0.158471]
[1739474172548,0.15590653,96482.0,96481.0,0.003]
[1739474172757,2.722516,96481.0,96480.0,0.003]
[1739474172970,2.722516,96481.0,96480.0,0.006]
[1739474173395,2.722516,96481.0,96480.0,0.003]
[1739474173848,2.66262,96481.0,96480.0,0.003]
[1739474174054,2.66262,96481.0,96469.0,0.15]
[1739474174055,2.488408,96481.0,96455.0,0.0829]
[1739474174264,0.15549,96469.0,96459.0,0.155506]
[1739474174485,0.907116,96469.0,96456.0,0.15]
[1739474174694,1.121253,96469.0,96458.0,0.207342]
[1739474174901,0.0494,96478.0,96470.0,0.155487]
[1739474175111,0.155482,96474.0,96468.0,0.47929]
[1739474175332,0.155482,96474.0,96468.0,0.15549]
[1739474175554,0.124276,96473.0,96468.0,0.004]
[1739474175804,0.00043753,96482.0,96469.0,0.10250365]
[1739474176027,0.00043753,96482.0,96481.0,0.155471]
[1739474176240,0.10849453,96482.0,96470.0,0.001]
[1739474176439,0.891959,96481.0,96471.0,0.30981965]
[1739474176659,0.730928,96480.0,96476.0,0.155477]
[1739474176866,0.741288,96481.0,96476.0,0.155477]
[1739474177085,0.741288,96481.0,96472.0,0.207314]
[1739474177289,0.741288,96481.0,96475.0,0.155479]
[1739474177290,0.7413946,96481.0,96475.0,0.155479]
[1739474177507,0.92392,96480.0,96472.0,0.10250365]
[1739474177747,0.155472,96480.0,96473.0,0.155483]
[1739474177961,0.0001066,96481.0,96472.0,0.10250365]
[1739474178152,0.155477,96477.0,96476.0,0.001]
[1739474178394,0.155483,96474.0,96472.0,0.10250365]
[1739474178599,1.043751,96473.0,96472.0,0.10250365]
[1739474178809,0.0001066,96481.0,96472.0,0.10250365]
[1739474179089,0.0001066,96481.0,96450.0,0.14464486]
[1739474179090,1.416107,96480.0,96450.0,0.14464486]
[1739474179281,0.155483,96473.0,96472.0,0.001]
[1739474179470,2.623115,96473.0,96472.0,0.001]
[1739474180352,0.155494,96467.0,96461.0,0.155502]
[1739474180571,0.155494,96467.0,96462.0,0.10250365]
[1739474180803,0.155494,96467.0,96462.0,0.25800465]
[1739474181026,0.207314,96472.0,96462.0,0.10250365]
[1739474181244,0.155492,96468.0,96462.0,0.25800465]
[1739474181479,0.207297,96480.0,96457.0,0.155509]
[1739474181480,0.155501,96463.0,96457.0,0.155509]
[1739474181689,0.155501,96463.0,96458.0,0.10250365]
[1739474181905,0.155501,96463.0,96462.0,0.005]
[1739474182112,0.207298,96479.0,96458.0,0.10250365]
[1739474182335,0.155496,96466.0,96460.0,0.155504]
[1739474182554,0.155496,96466.0,96462.0,0.005]
[1739474182771,0.07923753,96482.0,96462.0,0.005]
[1739474182991,0.1555,96463.0,96462.0,0.005]
[1739474183651,0.207326,96467.0,96460.0,0.006]
[1739474183854,0.1555,96463.0,96460.0,0.006]
[1739474184114,0.155502,96462.0,96460.0,0.006]
[1739474184557,0.155503,96461.0,96460.0,0.006]
[1739474184782,0.155505,96460.0,96458.0,0.10250365]
[1739474184973,0.155501,96463.0,96462.0,0.007]
[1739474185416,0.155501,96463.0,96460.0,0.006]
[1739474185631,0.155505,96460.0,96458.0,0.10250365]
[1739474185838,0.155495,96466.0,96460.0,0.007]
[1739474186050,0.155498,96465.0,96460.0,0.007]